bitfinex-derivatives/quotes_BTCF0:USTF0_20250514
["timestamp","ask_amount","ask_price","bid_price","bid_amount"]
[1747215288113,1.20856699,103370.0,103360.0,0.36520236]
[1747215288304,1.28161727,103370.0,103360.0,0.36520236]
[1747215289814,1.04517727,103370.0,103360.0,0.36520236]
[1747215290014,1.28145727,103370.0,103360.0,0.36520236]
[1747215290514,1.04517727,103370.0,103360.0,0.36520236]
[1747215290709,0.96650628,103370.0,103360.0,0.36520236]
[1747215290916,0.84194628,103370.0,103360.0,0.4619469]
[1747215291307,0.84756699,103370.0,103360.0,0.4619469]
[1747215291613,1.20836699,103370.0,103360.0,0.4619469]
[1747215291806,0.92623798,103370.0,103360.0,0.4619469]
[1747215292005,1.05079798,103370.0,103360.0,0.4619469]
[1747215292212,1.28699798,103370.0,103360.0,0.4619469]
[1747215292517,1.3704353,103370.0,103360.0,0.4619469]
[1747215292717,1.1342353,103370.0,103360.0,0.4619469]
[1747215293013,1.3703953,103370.0,103360.0,0.4619469]
[1747215293416,1.37601601,103370.0,103360.0,0.4619469]
[1747215294121,1.37601601,103370.0,103360.0,0.17171366]
[1747215294307,1.37601601,103370.0,103360.0,0.26370236]
[1747215294707,1.37601601,103370.0,103360.0,0.07021366]
[1747215294910,1.37601601,103370.0,103360.0,0.05249983]
[1747215295508,1.37601601,103370.0,103360.0,0.24598853]
[1747215295910,1.1888217,103370.0,103360.0,0.24598853]
[1747215296818,1.11015071,103370.0,103360.0,0.24598853]
[1747215297020,1.1888217,103370.0,103360.0,0.24598853]
[1747215297716,0.9526617,103370.0,103360.0,0.24598853]
[1747215297916,1.4247017,103370.0,103360.0,0.24598853]
[1747215298118,1.4447017,103370.0,103360.0,0.24598853]
[1747215298417,1.4447017,103370.0,103360.0,0.05249983]
[1747215298919,1.4447017,103370.0,103360.0,0.24598853]
[1747215299417,1.56736432,103370.0,103360.0,0.24598853]
[1747215300118,0.1934887,103360.0,103350.0,0.00193508]
[1747215300319,0.96033068,103360.0,103350.0,0.05283508]
[1747215300512,0.96033068,103360.0,103350.0,0.07054891]
[1747215300819,0.86033068,103360.0,103350.0,0.07054891]
[1747215301117,1.02241529,103360.0,103350.0,0.07054891]
[1747215301326,1.02241529,103360.0,103350.0,0.05383508]
[1747215301522,1.04241529,103360.0,103350.0,0.00293508]
[1747215301917,1.0572588,103360.0,103350.0,0.00393508]
[1747215303119,1.2972588,103360.0,103350.0,0.00393508]
[1747215303920,1.3940108,103360.0,103350.0,0.00393508]
[1747215304522,1.47268179,103360.0,103350.0,0.00393508]
[1747215304822,1.76750154,103360.0,103350.0,8e-08]
[1747215305215,0.1935262,103340.0,103330.0,0.0528]
[1747215305415,1.36354677,103340.0,103330.0,0.07051383]
[1747215305610,1.51434677,103340.0,103330.0,0.07051383]
[1747215306224,1.49634677,103340.0,103330.0,0.07051383]
[1747215306513,1.49634677,103340.0,103330.0,0.0568]
[1747215306720,1.85714677,103340.0,103330.0,0.004]
[1747215307114,1.85714677,103340.0,103330.0,0.007]
[1747215308419,1.87714677,103340.0,103330.0,0.007]
[1747215308831,1.88667725,103340.0,103330.0,0.007]
[1747215309425,2.14665513,103340.0,103330.0,0.007]
[1747215310119,2.35665513,103340.0,103330.0,0.007]
[1747215311524,0.1935449,103330.0,103320.0,0.0509]
[1747215311726,0.79510217,103330.0,103320.0,0.0509]
[1747215312115,0.94710217,103330.0,103320.0,0.0509]
[1747215312721,0.94710217,103330.0,103320.0,0.0609]
[1747215313123,0.96710217,103330.0,103320.0,0.0609]
[1747215315421,1.1377456,103330.0,103320.0,0.0609]
[1747215317329,1.1377456,103330.0,103320.0,0.07861383]
[1747215318229,1.3377456,103330.0,103320.0,0.07861383]
[1747215318833,1.24023507,103330.0,103320.0,0.07861383]
[1747215322534,1.31890606,103330.0,103320.0,0.07861383]
[1747215322733,1.24023507,103330.0,103320.0,0.07861383]
[1747215322936,1.16710217,103330.0,103320.0,0.07861383]
[1747215323131,0.1935636,103320.0,103310.0,0.00193583]
[1747215323433,1.35317552,103320.0,103310.0,0.00193583]
[1747215323635,1.19583354,103320.0,103310.0,0.10163583]
[1747215323838,1.35317552,103320.0,103310.0,0.10163583]
[1747215324135,1.51517552,103320.0,103310.0,0.05233583]
[1747215324538,1.79807491,103320.0,103290.0,0.00104903]
[1747215324836,1.79807491,103320.0,103290.0,0.10074903]
[1747215324837,0.27227209,103300.0,103290.0,0.10074903]
[1747215325130,0.74260218,103300.0,103290.0,0.10074903]
[1747215325341,0.79150218,103300.0,103290.0,0.29436883]
[1747215325629,0.8060589,103300.0,103290.0,0.29436883]
[1747215325832,0.8060589,103300.0,103290.0,0.31336883]
[1747215326027,0.8060589,103300.0,103290.0,0.33136883]
[1747215326232,0.81593656,103300.0,103290.0,0.33136883]
[1747215326434,0.81593656,103300.0,103290.0,0.38386883]
[1747215326636,0.22012557,103300.0,103290.0,0.74066883]
[1747215326837,0.69032557,103300.0,103290.0,0.85066883]
[1747215327032,0.20556885,103300.0,103290.0,0.83166883]
[1747215327234,0.20756885,103300.0,103290.0,0.91747893]
[1747215327729,0.44260885,103300.0,103290.0,0.91747893]
[1747215327928,0.43960885,103300.0,103290.0,0.91447893]
[1747215328130,0.20756885,103300.0,103290.0,0.99414992]
[1747215328428,0.19769119,103300.0,103290.0,0.99414992]
[1747215329229,0.19769119,103300.0,103290.0,1.15614992]
[1747215330132,0.19769119,103300.0,103290.0,0.99414992]
[1747215330541,0.19769119,103300.0,103290.0,2.49414992]
[1747215331440,0.19769119,103300.0,103290.0,2.53545464]
[1747215332435,0.19769119,103300.0,103290.0,2.89625464]
[1747215334931,0.19769119,103300.0,103290.0,2.77627893]
[1747215338637,0.19769119,103300.0,103290.0,2.89625464]
[1747215342143,0.00409009,103300.0,103290.0,3.11304235]
[1747215342336,0.0250675,103310.0,103300.0,0.1936011]
[1747215342536,0.18114366,103320.0,103310.0,0.1935824]
[1747215342731,0.18114366,103320.0,103310.0,0.59155811]
[1747215342952,0.18114366,103320.0,103310.0,3.25676021]
[1747215343136,0.18114366,103320.0,103310.0,3.41876021]
[1747215343839,0.06293323,103320.0,103310.0,3.42169604]
[1747215344237,0.06293323,103320.0,103310.0,3.25969604]
[1747215344442,0.06293323,103320.0,103310.0,3.24481604]
[1747215345140,0.05893323,103320.0,103310.0,3.24381604]
[1747215345346,0.06093323,103320.0,103310.0,3.24381604]
[1747215347340,0.06655394,103320.0,103310.0,3.24381604]
[1747215347648,0.00762071,103320.0,103310.0,3.24381604]
[1747215348250,0.002,103320.0,103310.0,3.24381604]
[1747215352142,0.002,103320.0,103310.0,2.52221604]
[1747215352338,0.002,103320.0,103310.0,3.24381604]
[1747215352545,0.0504,103330.0,103320.0,0.1935636]
[1747215352754,0.05782071,103340.0,103330.0,0.1935449]
[1747215352944,0.10652071,103340.0,103330.0,0.96762061]
[1747215353142,0.10652071,103340.0,103330.0,1.0644026]
[1747215353351,0.2944262,103340.0,103330.0,2.5644026]
[1747215354148,0.2984262,103340.0,103330.0,2.5644026]
[1747215354854,0.2984262,103340.0,103330.0,2.44442689]
[1747215355159,0.3034262,103340.0,103330.0,2.44542689]
[1747215355947,0.3034262,103340.0,103330.0,2.39542689]
[1747215357348,0.1099,103340.0,103330.0,2.5154026]
[1747215357648,0.3034262,103340.0,103330.0,2.5154026]
[1747215362563,0.3531262,103340.0,103330.0,2.20392689]
[1747215362761,0.47310191,103340.0,103330.0,0.09778199]
[1747215362962,0.47310191,103340.0,103330.0,0.29132689]
[1747215363162,0.63510191,103340.0,103330.0,0.29132689]
[1747215363556,0.99590191,103340.0,103330.0,0.09778199]
[1747215363860,0.99590191,103340.0,103330.0,0.001]
[1747215364565,1.23552262,103340.0,103330.0,0.001]
[1747215366759,1.22990191,103340.0,103330.0,0.001]
[1747215371270,1.65667391,103340.0,103330.0,0.001]
[1747215374360,1.40667391,103340.0,103330.0,0.001]
[1747215374555,0.1935636,103320.0,103310.0,0.00193583]
[1747215374760,0.90773931,103320.0,103310.0,0.00193583]
[1747215374974,1.40945502,103320.0,103310.0,0.00193583]
[1747215375273,1.45147931,103320.0,103310.0,0.00193583]
[1747215375769,1.45247931,103320.0,103310.0,0.00193583]
[1747215376769,1.45647931,103320.0,103310.0,0.00293583]
[1747215376969,1.3365036,103320.0,103310.0,0.00293583]
[1747215377169,0.99303931,103320.0,103310.0,0.00293583]
[1747215377468,1.46039931,103320.0,103310.0,0.00293583]
[1747215379361,2.03796702,103320.0,103310.0,3e-08]
[1747215379763,2.21796702,103320.0,103310.0,3e-08]
[1747215381465,2.21996702,103320.0,103310.0,3e-08]
[1747215388579,1.76891931,103320.0,103310.0,3e-08]
[1747215388775,1.64111931,103320.0,103310.0,0.13850003]
[1747215389878,2.12189502,103320.0,103310.0,0.13850003]
[1747215390073,2.12189502,103320.0,103310.0,0.09130003]
[1747215390276,2.12189502,103320.0,103310.0,0.04550003]
[1747215390464,2.12189502,103320.0,103310.0,3e-08]
[1747215391782,2.12189502,103320.0,103310.0,0.04670003]
[1747215392679,1.4158636,103320.0,103310.0,0.24028243]
[1747215392884,1.82179931,103320.0,103310.0,0.13580003]
[1747215393180,1.65979931,103320.0,103310.0,0.32938243]
[1747215393384,1.72897502,103320.0,103310.0,0.13580003]
[1747215393583,1.77577502,103320.0,103310.0,0.13580003]
[1747215394177,1.93777502,103320.0,103310.0,0.13580003]
[1747215395683,1.93777502,103320.0,103310.0,3e-08]
[1747215395988,2.31777502,103320.0,103310.0,3e-08]
[1747215399484,2.41456702,103320.0,103310.0,3e-08]
[1747215400188,0.1936011,103300.0,103290.0,0.0460681]
[1747215400398,1.52089681,103300.0,103290.0,0.0460681]
[1747215400688,1.66239681,103300.0,103290.0,0.0460681]
[1747215401380,1.66239681,103300.0,103270.0,0.00193658]
[1747215401381,0.1936386,103280.0,103270.0,0.00193658]
[1747215401586,0.55572501,103280.0,103270.0,0.04763658]
[1747215401786,0.78880501,103280.0,103270.0,0.24129388]
[1747215401975,0.83250501,103280.0,103270.0,0.24129388]
[1747215402380,1.19330501,103280.0,103270.0,0.24129388]
[1747215402586,1.19330501,103280.0,103270.0,0.24329388]
[1747215402784,1.08770291,103280.0,103270.0,0.24329388]
[1747215402984,1.20767862,103280.0,103270.0,0.24329388]
[1747215403184,1.20767862,103280.0,103270.0,0.29149388]
[1747215403687,1.08770291,103280.0,103270.0,0.28949388]
[1747215404073,0.49378291,103280.0,103270.0,0.28949388]
[1747215404388,0.49378291,103280.0,103270.0,0.28749388]
[1747215405274,0.61375862,103280.0,103270.0,0.33499388]
[1747215405678,0.26122291,103280.0,103270.0,0.33499388]
[1747215405880,0.26122291,103280.0,103270.0,1.03259844]
[1747215405881,0.21752291,103280.0,103270.0,1.03259844]
[1747215406087,0.41372686,103290.0,103280.0,0.1936386]
[1747215406399,0.64620686,103290.0,103280.0,0.7697386]
[1747215406689,0.64620686,103290.0,103280.0,0.38576745]
[1747215407084,0.41372686,103290.0,103280.0,0.38576745]
[1747215407289,0.64616686,103290.0,103280.0,0.38576745]
[1747215407787,0.64816686,103290.0,103280.0,0.38576745]
[1747215408084,0.66296912,103290.0,103280.0,0.38576745]
[1747215408489,0.6727036,103290.0,103280.0,0.38576745]
[1747215409086,0.7199036,103290.0,103280.0,0.38576745]
[1747215409589,0.49979654,103290.0,103280.0,0.38576745]
[1747215409789,0.49979654,103290.0,103280.0,0.42976745]
[1747215409996,0.61977225,103290.0,103280.0,0.3329386]
[1747215411786,0.49979654,103290.0,103280.0,0.3329386]
[1747215411993,0.61977225,103290.0,103280.0,0.3329386]
[1747215413788,0.49979654,103290.0,103280.0,0.3329386]
[1747215414089,0.61977225,103290.0,103280.0,0.3329386]
[1747215415895,0.49979654,103290.0,103280.0,0.3329386]
[1747215416189,0.49979654,103290.0,103280.0,0.56975808]
[1747215416190,0.49955654,103290.0,103280.0,0.56975808]
[1747215416495,0.45235654,103290.0,103280.0,1.05053379]
[1747215416993,0.45235654,103290.0,103280.0,2.55053379]
[1747215417190,0.49795654,103290.0,103280.0,2.55053379]
[1747215417584,0.49795654,103290.0,103280.0,2.43055808]
[1747215417993,0.49791654,103290.0,103280.0,2.43055808]
[1747215419199,0.49791654,103290.0,103280.0,2.29055808]
[1747215419496,0.26575654,103290.0,103280.0,2.29055808]
[1747215419698,0.49783654,103290.0,103280.0,2.29055808]
[1747215420688,0.49783654,103290.0,103280.0,0.23611948]
[1747215420893,0.70731225,103290.0,103280.0,0.42975808]
[1747215421702,0.58733654,103290.0,103280.0,0.42975808]
[1747215421892,0.58733654,103290.0,103280.0,0.79055808]
[1747215426907,0.58733654,103290.0,103280.0,2.29055808]
[1747215431304,0.66612005,103290.0,103280.0,2.29055808]
[1747215432111,0.66612005,103290.0,103280.0,2.19905808]
[1747215433502,1.02692005,103290.0,103280.0,1.83825808]
[1747215434212,0.58733654,103290.0,103280.0,2.19905808]
[1747215434399,0.66612005,103290.0,103280.0,2.39545808]
[1747215434605,0.35525654,103290.0,103280.0,2.39545808]
[1747215435011,0.43404005,103290.0,103280.0,2.28545808]
[1747215435501,0.43404005,103290.0,103280.0,1.64461948]
[1747215435702,0.43404005,103290.0,103280.0,1.83825808]
[1747215436810,0.79484005,103290.0,103280.0,1.83825808]
[1747215437012,0.79484005,103290.0,103280.0,0.33825808]
[1747215437213,0.1936386,103280.0,103270.0,0.69479468]
[1747215437412,0.67987111,103280.0,103270.0,0.73749468]
[1747215437604,0.67987111,103280.0,103270.0,0.83431416]
[1747215438404,0.67987111,103280.0,103270.0,0.83531416]
[1747215439304,0.5597786,103280.0,103270.0,0.83531416]
[1747215443111,0.5597786,103280.0,103270.0,2.33531416]
[1747215443820,0.67987111,103280.0,103270.0,0.46055606]
[1747215444027,1.27287111,103280.0,103270.0,0.00293658]
[1747215444324,1.43487111,103280.0,103270.0,0.00293658]
[1747215445228,1.27287111,103280.0,103270.0,0.00293658]
[1747215446716,1.27183111,103280.0,103270.0,0.00293658]
[1747215448118,1.36972774,103280.0,103270.0,0.00293658]
[1747215451632,1.27183111,103280.0,103270.0,0.00293658]
[1747215451833,1.27183111,103280.0,103270.0,0.04443658]
[1747215452221,1.27171111,103280.0,103270.0,0.04443658]
[1747215453633,0.80903111,103280.0,103270.0,0.23809388]
[1747215453931,1.27167111,103280.0,103270.0,0.08603658]
[1747215455927,1.27167111,103280.0,103270.0,0.27969388]
[1747215457225,1.27167111,103280.0,103270.0,0.08603658]
[1747215457533,1.27167111,103280.0,103270.0,0.27969388]
[1747215459235,1.23038567,103280.0,103270.0,0.27969388]
[1747215459430,1.23038567,103280.0,103270.0,0.08603658]
[1747215460128,1.23038567,103280.0,103270.0,0.32199388]
[1747215461434,0.86958567,103280.0,103270.0,0.32199388]
[1747215461634,1.23038567,103280.0,103270.0,0.32199388]
[1747215461834,0.7907786,103280.0,103270.0,0.32199388]
[1747215462029,0.86958567,103280.0,103270.0,0.32199388]
[1747215462937,0.7905386,103280.0,103270.0,0.41882273]
[1747215463242,0.3281386,103280.0,103270.0,0.41882273]
[1747215463429,0.63794567,103280.0,103270.0,0.41882273]
[1747215465947,0.71138629,103280.0,103270.0,0.41882273]
[1747215467843,1.38227336,103280.0,103270.0,0.00293658]
[1747215468145,1.30346629,103280.0,103270.0,0.19659388]
[1747215468730,1.30346629,103280.0,103270.0,0.00293658]
[1747215468936,1.30346629,103280.0,103270.0,0.19659388]
[1747215469132,1.30342629,103280.0,103270.0,0.00293658]
[1747215469336,0.84118629,103280.0,103270.0,0.00293658]
[1747215469539,1.30342629,103280.0,103270.0,0.00293658]
[1747215469840,1.40132292,103280.0,103270.0,0.00293658]
[1747215470443,1.40132292,103280.0,103270.0,0.19659388]
[1747215470444,1.32251585,103280.0,103270.0,0.19659388]
[1747215470742,1.40132292,103280.0,103270.0,0.19659388]
[1747215471141,1.40132292,103280.0,103270.0,0.00293658]
[1747215473347,1.40132292,103280.0,103270.0,0.19659388]
[1747215476350,1.40132292,103280.0,103270.0,0.24139388]
[1747215477545,1.40132292,103280.0,103270.0,0.00293658]
[1747215477744,1.40132292,103280.0,103270.0,0.19659388]
[1747215481556,1.3278823,103280.0,103270.0,0.19659388]
[1747215482058,1.3278823,103280.0,103270.0,0.23549388]
[1747215482850,1.24907523,103280.0,103270.0,0.23549388]
[1747215483151,1.3278823,103280.0,103270.0,0.23549388]
[1747215483350,1.3278823,103280.0,103270.0,0.27819388]
[1747215483654,1.3266423,103280.0,103270.0,0.31879388]
[1747215484254,0.84109523,103280.0,103270.0,0.88840095]
[1747215485257,0.84109523,103280.0,103270.0,0.9852298]
[1747215485445,0.96330566,103280.0,103270.0,0.9852298]
[1747215485645,0.96330566,103280.0,103270.0,0.54562273]
[1747215485846,1.00400566,103280.0,103270.0,0.54562273]
[1747215487758,0.9554484,103280.0,103270.0,0.54562273]
[1747215488454,0.4944884,103280.0,103270.0,0.54562273]
[1747215488658,0.7247684,103280.0,103270.0,0.54562273]
[1747215489861,0.80357547,103280.0,103270.0,0.41562273]
[1747215491661,0.7247684,103280.0,103270.0,0.41562273]
[1747215499061,0.62655177,103280.0,103270.0,0.52562273]
[1747215499460,0.54315177,103280.0,103270.0,0.9852298]
[1747215504956,0.54315177,103280.0,103270.0,0.8552298]
[1747215505162,0.54315177,103280.0,103270.0,0.9852298]
[1747215505361,0.62305177,103280.0,103270.0,0.90642273]
[1747215506772,0.62305177,103280.0,103270.0,0.9852298]
[1747215507971,0.31319177,103280.0,103270.0,0.8552298]
[1747215508163,0.54291177,103280.0,103270.0,0.9652298]
[1747215508774,0.54291177,103280.0,103270.0,0.88642273]
[1747215508973,0.38569177,103280.0,103270.0,0.88642273]
[1747215509174,0.61537177,103280.0,103270.0,0.88642273]
[1747215509879,0.61537177,103280.0,103270.0,0.9652298]
[1747215510377,0.61537177,103280.0,103270.0,0.77642273]
[1747215510874,0.61529177,103280.0,103270.0,0.77642273]
[1747215511177,0.5416386,103280.0,103270.0,0.9244517]
[1747215511376,0.5416386,103280.0,103270.0,1.0644517]
[1747215511690,0.3120386,103280.0,103270.0,1.0644517]
[1747215511873,0.5416386,103280.0,103270.0,1.0644517]
[1747215513578,0.5416386,103280.0,103270.0,0.9244517]
[1747215514264,0.69925274,103280.0,103270.0,0.15096555]
[1747215514465,1.06005274,103280.0,103270.0,0.34462285]
[1747215514669,1.06005274,103280.0,103270.0,0.15096555]
[1747215515882,1.14324567,103280.0,103270.0,0.15096555]
[1747215516271,1.22205274,103280.0,103270.0,0.15096555]
[1747215518281,1.22205274,103280.0,103270.0,0.00293658]
[1747215521986,0.99245274,103280.0,103270.0,0.00293658]
[1747215522185,1.45141274,103280.0,103270.0,0.00293658]
[1747215523486,1.54930937,103280.0,103270.0,0.00293658]
[1747215527993,1.71154742,103280.0,103270.0,0.00293658]
[1747215529693,1.25258742,103280.0,103270.0,0.00293658]
[1747215529880,1.48226742,103280.0,103270.0,0.00293658]
[1747215530082,1.25258742,103280.0,103270.0,0.00293658]
[1747215530280,1.48226742,103280.0,103270.0,0.00293658]
[1747215530490,1.40346035,103280.0,103270.0,0.00293658]
[1747215531986,1.36343273,103280.0,103270.0,0.00293658]
[1747215532787,1.36343273,103280.0,103270.0,0.19659388]
[1747215532987,1.59243273,103280.0,103270.0,0.19659388]
[1747215533189,1.43043273,103280.0,103270.0,0.23329388]
[1747215533586,1.43043273,103280.0,103270.0,0.30749388]
[1747215535790,1.28390782,103280.0,103270.0,0.30749388]
[1747215536481,1.28390782,103280.0,103270.0,0.11383658]
[1747215536690,1.28390782,103280.0,103270.0,0.30749388]
[1747215538795,0.97610075,103280.0,103270.0,0.30749388]
[1747215539184,1.20494075,103280.0,103270.0,0.30749388]
[1747215539691,1.28374782,103280.0,103270.0,0.30749388]
[1747215540496,1.3080623,103280.0,103270.0,0.30749388]
[1747215543795,0.8495423,103280.0,103270.0,0.30749388]
[1747215543998,0.8495423,103280.0,103270.0,0.9939298]
[1747215543999,0.33743523,103280.0,103270.0,0.9939298]
[1747215544202,0.56611523,103280.0,103270.0,0.9939298]
[1747215544400,0.33743523,103280.0,103270.0,0.9939298]
[1747215544607,0.56611523,103280.0,103270.0,0.9939298]
[1747215544903,0.56607523,103280.0,103270.0,0.9939298]
[1747215545296,0.56607523,103280.0,103270.0,1.1559298]
[1747215546104,0.56607523,103280.0,103270.0,0.9939298]
[1747215546904,0.56603523,103280.0,103270.0,0.9939298]
[1747215547206,0.56603523,103280.0,103270.0,1.1559298]
[1747215547703,0.33743523,103280.0,103270.0,1.1559298]
[1747215549110,0.33743523,103280.0,103270.0,0.7951298]
[1747215549294,0.31317266,103280.0,103270.0,1.1559298]
[1747215550808,0.31317266,103280.0,103270.0,1.0059298]
[1747215551010,0.31317266,103280.0,103270.0,1.1059298]
[1747215552109,0.31317266,103280.0,103270.0,0.9439298]
[1747215552910,0.31317266,103280.0,103270.0,0.86512273]
[1747215553105,0.2395386,103280.0,103270.0,0.86512273]
[1747215555304,0.2751386,103280.0,103270.0,0.86512273]
[1747215555603,0.2751386,103280.0,103270.0,0.88512273]
[1747215555805,0.3117386,103280.0,103270.0,0.88512273]
[1747215556005,0.39054567,103280.0,103270.0,0.33012273]
[1747215564621,0.46417973,103280.0,103270.0,0.33012273]
[1747215565126,0.46417973,103280.0,103270.0,0.29342273]
[1747215565318,0.46417973,103280.0,103270.0,0.19659388]
[1747215565507,0.82497973,103280.0,103270.0,0.00293658]
[1747215565709,0.9037868,103280.0,103270.0,0.00293658]
[1747215565923,0.5429868,103280.0,103270.0,0.00293658]
[1747215566129,1.0657868,103280.0,103270.0,0.00293658]
[1747215566514,0.62617973,103280.0,103270.0,0.19659388]
[1747215566715,0.98697973,103280.0,103270.0,0.19659388]
[1747215567710,0.98697973,103280.0,103270.0,0.00293658]
[1747215569023,1.0112423,103280.0,103270.0,0.00293658]
[1747215574436,1.0755825,103280.0,103270.0,0.00293658]
[1747215574831,1.15438957,103280.0,103270.0,0.00293658]
[1747215575434,1.38234957,103280.0,103270.0,0.00293658]
[1747215576135,1.22034957,103280.0,103270.0,0.00293658]
[1747215577236,1.38234957,103280.0,103270.0,0.00293658]
[1747215577432,1.58234957,103280.0,103270.0,0.00293658]
[1747215578041,1.54232317,103280.0,103270.0,0.00293658]
[1747215579743,1.54232317,103280.0,103270.0,0.00193658]
[1747215579941,1.54232317,103280.0,103270.0,8e-08]
[1747215580643,1.62113024,103280.0,103270.0,8e-08]
[1747215581343,1.54432317,103280.0,103270.0,8e-08]
[1747215581845,1.62313024,103280.0,103270.0,8e-08]
[1747215582047,1.54432317,103280.0,103270.0,8e-08]
[1747215582233,1.56931716,103280.0,103270.0,8e-08]
[1747215582636,0.1936761,103260.0,103250.0,0.00092848]
[1747215582835,1.16769024,103260.0,103250.0,0.00092848]
[1747215583036,1.26589024,103260.0,103250.0,0.00092848]
[1747215583945,1.26689024,103260.0,103250.0,0.00492848]
[1747215584144,1.78969024,103260.0,103250.0,0.00492848]
[1747215584343,1.78969024,103260.0,103250.0,0.00892848]
[1747215584849,1.79069024,103260.0,103250.0,0.00492848]
[1747215585250,1.79169024,103260.0,103250.0,0.00092848]
[1747215585953,1.95419117,103260.0,103250.0,0.00092848]
[1747215590047,1.88960416,103260.0,103250.0,0.00092848]
[1747215590265,1.72760416,103260.0,103250.0,0.00092848]
[1747215590657,1.56999002,103260.0,103250.0,0.00092848]
[1747215590845,1.72760416,103260.0,103250.0,0.00092848]
[1747215591951,1.82760416,103260.0,103250.0,0.00092848]
[1747215594958,1.90100684,103260.0,103250.0,0.00092848]
[1747215597354,1.17940684,103260.0,103250.0,0.00092848]
[1747215597548,1.90100684,103260.0,103250.0,0.00092848]
[1747215597954,1.82219977,103260.0,103250.0,0.00092848]
[1747215598260,1.90100684,103260.0,103250.0,0.00092848]
[1747215599863,1.90100684,103260.0,103250.0,0.03212848]
[1747215600166,1.82760416,103260.0,103250.0,0.03212848]
[1747215601672,1.66999002,103260.0,103250.0,0.03212848]
[1747215601872,1.82760416,103260.0,103250.0,0.03212848]
[1747215603674,1.37200416,103260.0,103250.0,0.03212848]
[1747215603875,1.74763709,103260.0,103250.0,0.06322848]
[1747215604073,1.29319709,103260.0,103250.0,0.09472848]
[1747215604278,1.74763709,103260.0,103250.0,0.09472848]
[1747215604466,1.64972317,103260.0,103250.0,0.09472848]
[1747215604664,1.19528317,103260.0,103250.0,0.09472848]
[1747215604973,1.64972317,103260.0,103250.0,0.09472848]
[1747215605384,1.28892317,103260.0,103250.0,0.09472848]
[1747215605682,0.2282761,103260.0,103250.0,0.87607099]
[1747215605983,0.78122789,103260.0,103250.0,0.74607099]
[1747215606185,0.78122789,103260.0,103250.0,0.90807099]
[1747215606580,0.32682789,103260.0,103250.0,0.90807099]
[1747215606785,0.78122789,103260.0,103250.0,0.90807099]
[1747215607086,0.55398789,103260.0,103250.0,0.90807099]
[1747215607676,0.32682789,103260.0,103250.0,0.90807099]
[1747215607876,0.78118789,103260.0,103250.0,0.90807099]
[1747215609887,0.87910181,103260.0,103250.0,0.90807099]
[1747215610089,0.87910181,103260.0,103250.0,1.07007099]
[1747215610273,0.87910181,103260.0,103250.0,0.90807099]
[1747215611687,0.65178181,103260.0,103250.0,0.90807099]
[1747215612183,0.65178181,103260.0,103250.0,0.74607099]
[1747215614794,0.57297474,103260.0,103250.0,0.74607099]
[1747215614978,0.65178181,103260.0,103250.0,0.74607099]
[1747215617891,0.72532989,103260.0,103250.0,0.74607099]
[1747215618493,0.70558517,103260.0,103250.0,0.74607099]
[1747215618794,0.47854517,103260.0,103250.0,0.74607099]
[1747215618995,0.6266581,103260.0,103250.0,0.94487806]
[1747215619194,0.6266581,103260.0,103250.0,1.10687806]
[1747215619787,0.6266181,103260.0,103250.0,1.10687806]
[1747215620091,0.6266181,103260.0,103250.0,0.74607099]
[1747215620298,0.6266181,103260.0,103250.0,0.87607099]
[1747215622683,0.52870418,103260.0,103250.0,0.74607099]
[1747215623287,0.68631832,103260.0,103250.0,0.09472848]
[1747215623595,1.11231832,103260.0,103250.0,0.03212848]
[1747215623795,1.03351125,103260.0,103250.0,0.03212848]
[1747215624196,1.11231832,103260.0,103250.0,0.03212848]
[1747215624989,1.03351125,103260.0,103250.0,0.03212848]
[1747215625389,1.11231832,103260.0,103250.0,0.00092848]
[1747215625991,1.03351125,103260.0,103250.0,0.00092848]
[1747215626597,1.03351125,103260.0,103250.0,0.03352848]
[1747215627190,1.33939832,103260.0,103250.0,0.03352848]
[1747215629602,1.26059125,103260.0,103250.0,0.00092848]
[1747215629805,1.33939832,103260.0,103250.0,0.00092848]
[1747215631192,1.33939832,103260.0,103250.0,0.19462338]
[1747215631403,1.33939832,103260.0,103250.0,0.00092848]
[1747215631597,0.97859832,103260.0,103250.0,0.00092848]
[1747215631802,1.33939832,103260.0,103250.0,0.00092848]
[1747215633003,1.33939832,103260.0,103250.0,0.19462338]
[1747215633487,1.18178418,103260.0,103250.0,0.19462338]
[1747215633893,1.33939832,103260.0,103250.0,0.19462338]
[1747215634703,1.33939832,103260.0,103250.0,0.00092848]
[1747215634903,1.33939832,103260.0,103250.0,0.19462338]
[1747215636698,1.18102418,103260.0,103250.0,0.40343045]
[1747215636999,0.44583125,103260.0,103250.0,0.41742338]
[1747215637199,0.89903125,103260.0,103250.0,0.41742338]
[1747215637496,0.89903125,103260.0,103250.0,0.28742338]
[1747215638802,0.89903125,103260.0,103250.0,0.25542338]
[1747215639106,0.99694517,103260.0,103250.0,0.25542338]
[1747215639496,0.9181381,103260.0,103250.0,0.25542338]
[1747215639705,0.99694517,103260.0,103250.0,0.25542338]
[1747215641402,1.35774517,103260.0,103250.0,0.25542338]
[1747215641610,0.99682517,103260.0,103250.0,0.25542338]
[1747215642608,1.35762517,103260.0,103250.0,0.25542338]
[1747215642807,1.18616317,103260.0,103250.0,0.25542338]
[1747215643699,1.1073561,103260.0,103250.0,0.25542338]
[1747215643900,1.18616317,103260.0,103250.0,0.25542338]
[1747215645205,0.82536317,103260.0,103250.0,0.25542338]
[1747215645402,1.18616317,103260.0,103250.0,0.25542338]
[1747215646412,1.1073561,103260.0,103250.0,0.25542338]
[1747215646608,0.7464761,103260.0,103250.0,0.38437099]
[1747215646804,0.2934761,103260.0,103250.0,0.96397806]
[1747215646997,0.7464361,103260.0,103250.0,0.96397806]
[1747215647197,0.7464361,103260.0,103250.0,1.04717099]
[1747215647198,0.76618082,103260.0,103250.0,1.04717099]
[1747215647605,0.47466082,103260.0,103250.0,1.04717099]
[1747215647813,0.47434082,103260.0,103250.0,1.12597806]
[1747215648213,0.24802082,103260.0,103250.0,1.12597806]
[1747215648409,0.47434082,103260.0,103250.0,1.12597806]
[1747215648912,0.47434082,103260.0,103250.0,1.10597806]
[1747215649104,0.47434082,103260.0,103250.0,2.60597806]
[1747215649808,0.47434082,103260.0,103250.0,2.52717099]
[1747215650112,0.47434082,103260.0,103250.0,2.60597806]
[1747215652104,0.5478889,103260.0,103250.0,2.60597806]
[1747215652909,0.5478889,103260.0,103250.0,2.48597806]
[1747215653415,0.5478889,103260.0,103250.0,2.61597806]
[1747215655506,0.47434082,103260.0,103250.0,2.61597806]
[1747215656016,0.47434082,103260.0,103250.0,2.48597806]
[1747215656217,0.47434082,103260.0,103250.0,2.60597806]
[1747215656612,0.55314789,103260.0,103250.0,0.90717099]
[1747215656815,0.61674789,103260.0,103250.0,0.48347099]
[1747215657216,0.61674789,103260.0,103250.0,0.32147099]
[1747215658421,1.05109597,103260.0,103250.0,0.22462338]
[1747215659622,1.05109597,103260.0,103250.0,0.19462338]
[1747215660016,1.12990304,103260.0,103250.0,0.19462338]
[1747215660519,1.05109597,103260.0,103250.0,0.19462338]
[1747215660720,1.05109597,103260.0,103250.0,0.00092848]
[1747215660721,1.12990304,103260.0,103250.0,0.00092848]